[Event "Titled Tuesday Blitz March 28 Late 2023"]
[White "Urbina Perez, Juan Antonio"]
[Black "Karthik Rajaa"]
[WhiteFideId "2217368"]
[BlackFideId "25035215"]
[WhiteElo "2197"]
[BlackElo "2215"]
[Result "1-0"]
[Round "07"]
[TimeControl "180+2"]
[Date "2023.03.28"]
[WhiteClock "0:01:06"]
[BlackClock "0:00:06"]

1. c4 {[%clk 0:02:59]}  Nf6 {[%clk 0:03:00]} 2. g3 {[%clk 0:02:54]}  g6 {[%clk 0:02:57]} 3. Bg2 {[%clk 0:02:52]}  Bg7 {[%clk 0:02:58]} 4. Nc3 {[%clk 0:02:53]}  O-O {[%clk 0:02:58]} 5. Nf3 {[%clk 0:02:53]}  d6 {[%clk 0:02:58]} 6. O-O {[%clk 0:02:54]}  c5 {[%clk 0:02:58]} 7. b3 {[%clk 0:02:53]}  Ne4 {[%clk 0:02:55]} 8. Bb2 {[%clk 0:02:52]}  Nxc3 {[%clk 0:02:55]} 9. Bxc3 {[%clk 0:02:53]}  Bxc3 {[%clk 0:02:55]} 10. dxc3 {[%clk 0:02:54]}  Nc6 {[%clk 0:02:55]} 11. e4 {[%clk 0:02:52]}  Bg4 {[%clk 0:02:52]} 12. h3 {[%clk 0:02:48]}  Bxf3 {[%clk 0:02:51]} 13. Bxf3 {[%clk 0:02:49]}  Qa5 {[%clk 0:02:32]} 14. Qd2 {[%clk 0:02:47]}  a6 {[%clk 0:02:31]} 15. h4 {[%clk 0:02:46]}  h5 {[%clk 0:02:12]} 16. Bxh5 {[%clk 0:02:34]}  Kg7 {[%clk 0:02:12]} 17. Bf3 {[%clk 0:02:33]}  Rh8 {[%clk 0:02:09]} 18. Bg2 {[%clk 0:02:33]}  Rh5 {[%clk 0:02:04]} 19. Bf3 {[%clk 0:02:28]}  Rh6 {[%clk 0:02:03]} 20. Rfe1 {[%clk 0:02:23]}  Rah8 {[%clk 0:02:01]} 21. Bg2 {[%clk 0:02:22]}  Qc7 {[%clk 0:01:49]} 22. Qd5 {[%clk 0:02:17]}  Rh5 {[%clk 0:01:26]} 23. Qd3 {[%clk 0:02:17]}  g5 {[%clk 0:01:23]} 24. hxg5 {[%clk 0:02:16]}  Rxg5 {[%clk 0:01:24]} 25. Rad1 {[%clk 0:02:10]}  Qc8 {[%clk 0:01:20]} 26. Qe3 {[%clk 0:02:09]}  Rgh5 {[%clk 0:01:19]} 27. Kf1 {[%clk 0:02:04]}  Qg4 {[%clk 0:01:16]} 28. Bf3 {[%clk 0:01:59]}  Qh3+ {[%clk 0:00:52]} 29. Ke2 {[%clk 0:01:59]}  R5h6 {[%clk 0:00:53]} 30. Rh1 {[%clk 0:01:55]}  Qe6 {[%clk 0:00:52]} 31. Rxh6 {[%clk 0:01:54]}  Rxh6 {[%clk 0:00:52]} 32. Rh1 {[%clk 0:01:54]}  Rxh1 {[%clk 0:00:49]} 33. Bxh1 {[%clk 0:01:55]}  Qf6 {[%clk 0:00:49]} 34. Bg2 {[%clk 0:01:47]}  Ne5 {[%clk 0:00:49]} 35. Qf4 {[%clk 0:01:44]}  Qg6 {[%clk 0:00:44]} 36. Bf3 {[%clk 0:01:31]}  f6 {[%clk 0:00:37]} 37. Qf5 {[%clk 0:01:25]}  Qxf5 {[%clk 0:00:32]} 38. exf5 {[%clk 0:01:26]}  b6 {[%clk 0:00:31]} 39. Bd5 {[%clk 0:01:21]}  Nd7 {[%clk 0:00:15]} 40. b4 {[%clk 0:01:16]}  a5 {[%clk 0:00:13]} 41. a3 {[%clk 0:01:15]}  Kh6 {[%clk 0:00:11]} 42. f4 {[%clk 0:01:14]}  Kh5 {[%clk 0:00:10]} 43. Bf3+ {[%clk 0:01:13]}  Kh6 {[%clk 0:00:10]} 44. g4 {[%clk 0:01:13]}  Nf8 {[%clk 0:00:11]} 45. Bd5 {[%clk 0:01:12]}  Nd7 {[%clk 0:00:11]} 46. Bc6 {[%clk 0:01:11]}  Nb8 {[%clk 0:00:11]} 47. Bb5 {[%clk 0:01:09]}  Kg7 {[%clk 0:00:11]} 48. Ke3 {[%clk 0:01:09]}  Kf7 {[%clk 0:00:12]} 49. Ke4 {[%clk 0:01:10]}  Kf8 {[%clk 0:00:10]} 50. Kd5 {[%clk 0:01:09]}  Kf7 {[%clk 0:00:10]} 51. g5 {[%clk 0:01:08]}  fxg5 {[%clk 0:00:09]} 52. fxg5 {[%clk 0:01:09]}  Kg7 {[%clk 0:00:06]} 53. Ke6 {[%clk 0:01:07]}  Kf8 {[%clk 0:00:07]} 54. g6 {[%clk 0:01:06]}  axb4 {[%clk 0:00:05]} 55. cxb4 {[%clk 0:01:05]}  cxb4 {[%clk 0:00:06]} 56. axb4 {[%clk 0:01:06]} 1-0


[Site "https://www.chess.com"]

[Event "Titled Tuesday Blitz March 28 Late 2023"]
[White "Florescu, Codrut-Constantin"]
[Black "Minko, Dmitry"]
[WhiteFideId "1202200"]
[BlackFideId "24188468"]
[WhiteElo "2191"]
[BlackElo "2147"]
[Result "1-0"]
[Round "07"]
[TimeControl "180+2"]
[Date "2023.03.28"]
[WhiteClock "0:01:48"]
[BlackClock "0:00:49"]

1. e4 {[%clk 0:03:00]}  e5 {[%clk 0:03:00]} 2. Nf3 {[%clk 0:03:00]}  Nc6 {[%clk 0:03:00]} 3. Bc4 {[%clk 0:03:00]}  Nf6 {[%clk 0:03:00]} 4. d3 {[%clk 0:03:00]}  h6 {[%clk 0:03:01]} 5. a4 {[%clk 0:02:57]}  g6 {[%clk 0:03:00]} 6. a5 {[%clk 0:02:55]}  a6 {[%clk 0:02:55]} 7. O-O {[%clk 0:02:54]}  Bg7 {[%clk 0:02:55]} 8. Nc3 {[%clk 0:02:54]}  O-O {[%clk 0:02:55]} 9. Nd5 {[%clk 0:02:49]}  d6 {[%clk 0:02:49]} 10. h3 {[%clk 0:02:47]}  Kh7 {[%clk 0:02:49]} 11. c3 {[%clk 0:02:44]}  Ne7 {[%clk 0:02:46]} 12. Nxf6+ {[%clk 0:02:39]}  Bxf6 {[%clk 0:02:47]} 13. b4 {[%clk 0:02:39]}  d5 {[%clk 0:02:35]} 14. Bb3 {[%clk 0:02:36]}  c6 {[%clk 0:02:30]} 15. d4 {[%clk 0:02:27]}  exd4 {[%clk 0:02:17]} 16. e5 {[%clk 0:02:26]}  Bg7 {[%clk 0:02:17]} 17. cxd4 {[%clk 0:02:26]}  Nf5 {[%clk 0:02:12]} 18. g4 {[%clk 0:02:10]}  Nh4 {[%clk 0:01:44]} 19. Nh2 {[%clk 0:02:10]}  f5 {[%clk 0:01:44]} 20. f4 {[%clk 0:02:01]}  fxg4 {[%clk 0:01:38]} 21. hxg4 {[%clk 0:02:00]}  h5 {[%clk 0:01:17]} 22. gxh5 {[%clk 0:01:59]}  Bh3 {[%clk 0:01:10]} 23. hxg6+ {[%clk 0:01:54]}  Nxg6 {[%clk 0:00:58]} 24. Qh5+ {[%clk 0:01:50]}  Bh6 {[%clk 0:00:49]} 25. Qxh3 {[%clk 0:01:48]} 1-0


[Site "https://www.chess.com"]

[Event "Titled Tuesday Blitz March 28 Late 2023"]
[White "Dudzinski, Pawel"]
[Black "Sokac, Marko"]
[WhiteFideId "1117890"]
[BlackFideId "14531356"]
[WhiteElo "2099"]
[BlackElo "2355"]
[Result "1/2-1/2"]
[Round "07"]
[TimeControl "180+2"]
[Date "2023.03.28"]
[WhiteClock "0:00:05"]
[BlackClock "0:00:20"]

1. e4 {[%clk 0:03:00]}  d6 {[%clk 0:02:59]} 2. Nc3 {[%clk 0:02:59]}  Nf6 {[%clk 0:03:00]} 3. g3 {[%clk 0:02:59]}  c6 {[%clk 0:03:00]} 4. Bg2 {[%clk 0:02:59]}  e5 {[%clk 0:03:00]} 5. Nge2 {[%clk 0:02:59]}  Be7 {[%clk 0:03:01]} 6. a4 {[%clk 0:03:00]}  b6 {[%clk 0:03:00]} 7. O-O {[%clk 0:02:57]}  Bb7 {[%clk 0:03:00]} 8. d4 {[%clk 0:02:47]}  Nbd7 {[%clk 0:02:59]} 9. h3 {[%clk 0:02:46]}  O-O {[%clk 0:02:59]} 10. Be3 {[%clk 0:02:36]}  Qc7 {[%clk 0:02:57]} 11. Qd2 {[%clk 0:02:35]}  Rad8 {[%clk 0:02:56]} 12. b3 {[%clk 0:02:34]}  d5 {[%clk 0:02:52]} 13. exd5 {[%clk 0:02:33]}  cxd5 {[%clk 0:02:52]} 14. dxe5 {[%clk 0:02:11]}  Nxe5 {[%clk 0:02:53]} 15. Nb5 {[%clk 0:02:06]}  Qb8 {[%clk 0:02:52]} 16. Bf4 {[%clk 0:01:50]}  Ne4 {[%clk 0:02:53]} 17. Qd4 {[%clk 0:01:48]}  Bf6 {[%clk 0:02:51]} 18. Qb4 {[%clk 0:01:21]}  Rfe8 {[%clk 0:02:46]} 19. Rad1 {[%clk 0:01:04]}  a6 {[%clk 0:02:38]} 20. Nbd4 {[%clk 0:01:03]}  Qa7 {[%clk 0:02:32]} 21. Be3 {[%clk 0:00:53]}  Be7 {[%clk 0:02:27]} 22. Qe1 {[%clk 0:00:50]}  Bc5 {[%clk 0:02:20]} 23. Nf5 {[%clk 0:00:19]}  Bxe3 {[%clk 0:02:19]} 24. Nxe3 {[%clk 0:00:18]}  Qa8 {[%clk 0:02:19]} 25. Nd4 {[%clk 0:00:18]}  Rc8 {[%clk 0:02:15]} 26. Bxe4 {[%clk 0:00:18]}  dxe4 {[%clk 0:02:15]} 27. Kg2 {[%clk 0:00:16]}  Nf3 {[%clk 0:02:14]} 28. Nxf3 {[%clk 0:00:14]}  exf3+ {[%clk 0:02:15]} 29. Kh2 {[%clk 0:00:14]}  Be4 {[%clk 0:02:13]} 30. c4 {[%clk 0:00:13]}  Qc6 {[%clk 0:02:09]} 31. Rd4 {[%clk 0:00:12]}  f5 {[%clk 0:01:58]} 32. Qd2 {[%clk 0:00:10]}  Qh6 {[%clk 0:01:53]} 33. Rd1 {[%clk 0:00:09]}  f4 {[%clk 0:01:53]} 34. Nf1 {[%clk 0:00:09]}  Bf5 {[%clk 0:01:42]} 35. h4 {[%clk 0:00:09]}  fxg3+ {[%clk 0:01:35]} 36. Nxg3 {[%clk 0:00:10]}  Qxd2 {[%clk 0:01:14]} 37. R1xd2 {[%clk 0:00:11]}  Bg6 {[%clk 0:01:10]} 38. Rf4 {[%clk 0:00:11]}  Rf8 {[%clk 0:01:05]} 39. Rxf8+ {[%clk 0:00:12]}  Rxf8 {[%clk 0:01:06]} 40. Rd6 {[%clk 0:00:12]}  Rb8 {[%clk 0:01:06]} 41. h5 {[%clk 0:00:13]}  Bc2 {[%clk 0:01:06]} 42. Rd7 {[%clk 0:00:06]}  Bxb3 {[%clk 0:01:05]} 43. Nf5 {[%clk 0:00:06]}  g6 {[%clk 0:00:49]} 44. hxg6 {[%clk 0:00:05]}  hxg6 {[%clk 0:00:49]} 45. Ne7+ {[%clk 0:00:06]}  Kf8 {[%clk 0:00:47]} 46. Nxg6+ {[%clk 0:00:06]}  Ke8 {[%clk 0:00:47]} 47. Rg7 {[%clk 0:00:04]}  Rc8 {[%clk 0:00:38]} 48. Rg8+ {[%clk 0:00:04]}  Kd7 {[%clk 0:00:36]} 49. Ne5+ {[%clk 0:00:04]}  Kc7 {[%clk 0:00:36]} 50. Rxc8+ {[%clk 0:00:04]}  Kxc8 {[%clk 0:00:36]} 51. Kg3 {[%clk 0:00:03]}  Bxa4 {[%clk 0:00:36]} 52. Kxf3 {[%clk 0:00:04]}  Kc7 {[%clk 0:00:36]} 53. Ke4 {[%clk 0:00:05]}  Bc2+ {[%clk 0:00:35]} 54. Kd4 {[%clk 0:00:05]}  a5 {[%clk 0:00:36]} 55. f4 {[%clk 0:00:06]}  a4 {[%clk 0:00:36]} 56. Kc3 {[%clk 0:00:06]}  Bd1 {[%clk 0:00:31]} 57. Kb4 {[%clk 0:00:06]}  Kd6 {[%clk 0:00:31]} 58. Nd3 {[%clk 0:00:07]}  Bc2 {[%clk 0:00:29]} 59. Nb2 {[%clk 0:00:07]}  Ke6 {[%clk 0:00:20]} 60. Nxa4 {[%clk 0:00:07]}  Kf5 {[%clk 0:00:21]} 61. Nxb6 {[%clk 0:00:07]}  Kxf4 {[%clk 0:00:21]} 62. Kc5 {[%clk 0:00:06]}  Bb3 {[%clk 0:00:20]} 63. Nd5+ {[%clk 0:00:06]}  Kg5 {[%clk 0:00:19]} 64. Kb5 {[%clk 0:00:05]}  Bxc4+ {[%clk 0:00:20]} 1/2-1/2


[Site "https://www.chess.com"]

[Event "Titled Tuesday Blitz March 28 Late 2023"]
[White "Yeritsyan, Hayk"]
[Black "Fiorito, Joaquin"]
[WhiteFideId "13307320"]
[BlackFideId "180173"]
[WhiteElo "2441"]
[BlackElo "2157"]
[Result "1-0"]
[Round "07"]
[TimeControl "180+2"]
[Date "2023.03.28"]
[WhiteClock "0:00:10"]
[BlackClock "0:00:02"]

1. d4 {[%clk 0:02:58]}  Nf6 {[%clk 0:02:59]} 2. Nf3 {[%clk 0:02:58]}  d5 {[%clk 0:02:59]} 3. e3 {[%clk 0:02:58]}  c6 {[%clk 0:02:57]} 4. Bd3 {[%clk 0:02:58]}  Bg4 {[%clk 0:02:56]} 5. Nbd2 {[%clk 0:02:59]}  Nbd7 {[%clk 0:02:56]} 6. c3 {[%clk 0:03:00]}  e5 {[%clk 0:02:55]} 7. dxe5 {[%clk 0:03:01]}  Nxe5 {[%clk 0:02:56]} 8. Be2 {[%clk 0:03:01]}  Nxf3+ {[%clk 0:02:52]} 9. Bxf3 {[%clk 0:03:02]}  Bxf3 {[%clk 0:02:49]} 10. Qxf3 {[%clk 0:03:03]}  Bd6 {[%clk 0:02:49]} 11. O-O {[%clk 0:03:04]}  O-O {[%clk 0:02:49]} 12. e4 {[%clk 0:03:04]}  dxe4 {[%clk 0:02:49]} 13. Nxe4 {[%clk 0:03:05]}  Nxe4 {[%clk 0:02:49]} 14. Qxe4 {[%clk 0:03:06]}  Qc7 {[%clk 0:02:50]} 15. g3 {[%clk 0:03:06]}  Rfe8 {[%clk 0:02:50]} 16. Qf3 {[%clk 0:03:06]}  Rad8 {[%clk 0:02:49]} 17. Be3 {[%clk 0:03:06]}  a6 {[%clk 0:02:49]} 18. Rfd1 {[%clk 0:03:05]}  Be5 {[%clk 0:02:46]} 19. Rxd8 {[%clk 0:03:05]}  Rxd8 {[%clk 0:02:46]} 20. Rd1 {[%clk 0:03:05]}  Rxd1+ {[%clk 0:02:40]} 21. Qxd1 {[%clk 0:03:06]}  h6 {[%clk 0:02:38]} 22. Qd3 {[%clk 0:03:04]}  Qd6 {[%clk 0:02:31]} 23. Qxd6 {[%clk 0:03:03]}  Bxd6 {[%clk 0:02:32]} 24. c4 {[%clk 0:03:04]}  f6 {[%clk 0:02:28]} 25. g4 {[%clk 0:03:03]}  Kf7 {[%clk 0:02:29]} 26. h3 {[%clk 0:03:02]}  Ke6 {[%clk 0:02:29]} 27. f3 {[%clk 0:03:00]}  b5 {[%clk 0:02:22]} 28. b3 {[%clk 0:02:58]}  f5 {[%clk 0:02:16]} 29. Kf1 {[%clk 0:02:56]}  Be5 {[%clk 0:02:00]} 30. Ke2 {[%clk 0:02:54]}  Bb2 {[%clk 0:01:58]} 31. Kd3 {[%clk 0:02:54]}  Ke5 {[%clk 0:01:59]} 32. Bd2 {[%clk 0:02:46]}  f4 {[%clk 0:01:50]} 33. Ba5 {[%clk 0:02:36]}  g5 {[%clk 0:01:34]} 34. Bc7+ {[%clk 0:02:30]}  Ke6 {[%clk 0:01:32]} 35. Ke4 {[%clk 0:02:30]}  Bf6 {[%clk 0:01:26]} 36. a4 {[%clk 0:02:24]}  bxa4 {[%clk 0:01:24]} 37. bxa4 {[%clk 0:02:24]}  Bb2 {[%clk 0:01:22]} 38. Bb8 {[%clk 0:02:23]}  Bf6 {[%clk 0:01:22]} 39. Ba7 {[%clk 0:02:21]}  Bc3 {[%clk 0:01:12]} 40. Bb6 {[%clk 0:01:50]}  Bb2 {[%clk 0:01:09]} 41. Bf2 {[%clk 0:01:25]}  Bf6 {[%clk 0:01:05]} 42. Be1 {[%clk 0:01:21]}  Bb2 {[%clk 0:00:59]} 43. h4 {[%clk 0:01:20]}  Be5 {[%clk 0:00:54]} 44. hxg5 {[%clk 0:01:05]}  hxg5 {[%clk 0:00:55]} 45. Bb4 {[%clk 0:00:59]}  Bf6 {[%clk 0:00:52]} 46. Bc5 {[%clk 0:00:57]}  Bc3 {[%clk 0:00:48]} 47. Bb6 {[%clk 0:00:47]}  Bf6 {[%clk 0:00:45]} 48. Bc7 {[%clk 0:00:47]}  Be7 {[%clk 0:00:40]} 49. Kd4 {[%clk 0:00:45]}  Kd7 {[%clk 0:00:21]} 50. Be5 {[%clk 0:00:40]}  Ke6 {[%clk 0:00:21]} 51. Bh8 {[%clk 0:00:25]}  Ba3 {[%clk 0:00:21]} 52. Ke4 {[%clk 0:00:20]}  Be7 {[%clk 0:00:19]} 53. Be5 {[%clk 0:00:19]}  Bd8 {[%clk 0:00:18]} 54. Bb8 {[%clk 0:00:19]}  Be7 {[%clk 0:00:18]} 55. Kd4 {[%clk 0:00:18]}  Bf8 {[%clk 0:00:17]} 56. Be5 {[%clk 0:00:16]}  Ba3 {[%clk 0:00:14]} 57. Ke4 {[%clk 0:00:16]}  Be7 {[%clk 0:00:14]} 58. Bd4 {[%clk 0:00:15]}  Bd8 {[%clk 0:00:13]} 59. Bb2 {[%clk 0:00:13]}  Be7 {[%clk 0:00:13]} 60. Bc3 {[%clk 0:00:13]}  Bd8 {[%clk 0:00:13]} 61. Bd4 {[%clk 0:00:13]}  Be7 {[%clk 0:00:13]} 62. Kd3 {[%clk 0:00:13]}  Bd8 {[%clk 0:00:09]} 63. Bf2 {[%clk 0:00:13]}  Ba5 {[%clk 0:00:06]} 64. Ke4 {[%clk 0:00:10]}  Bd8 {[%clk 0:00:06]} 65. Bd4 {[%clk 0:00:10]}  Be7 {[%clk 0:00:06]} 66. Kd3 {[%clk 0:00:10]}  Bd8 {[%clk 0:00:06]} 67. Kc3 {[%clk 0:00:10]}  Ba5+ {[%clk 0:00:06]} 68. Kb3 {[%clk 0:00:10]}  Bd8 {[%clk 0:00:02]} 69. Kb4 {[%clk 0:00:10]}  a5+ {[%clk 0:00:03]} 70. Kc5 {[%clk 0:00:09]}  Kd7 {[%clk 0:00:02]} 71. Be5 {[%clk 0:00:08]}  Be7+ {[%clk 0:00:01]} 72. Kd4 {[%clk 0:00:08]}  Bb4 {[%clk 0:00:02]} 73. Ke4 {[%clk 0:00:08]}  Ke6 {[%clk 0:00:02]} 74. Bd4 {[%clk 0:00:08]}  Be7 {[%clk 0:00:02]} 75. Bb6 {[%clk 0:00:08]}  Bb4 {[%clk 0:00:02]} 76. Bd8 {[%clk 0:00:09]}  Bd6 {[%clk 0:00:01]} 77. Bxa5 {[%clk 0:00:09]}  c5 {[%clk 0:00:01]} 78. Bd8 {[%clk 0:00:09]}  Kd7 {[%clk 0:00:01]} 79. Bxg5 {[%clk 0:00:09]}  Kc6 {[%clk 0:00:02]} 80. Bxf4 {[%clk 0:00:10]} 1-0


[Site "https://www.chess.com"]

[Event "Titled Tuesday Blitz March 28 Late 2023"]
[White "Hoffmann, Asa"]
[Black "Grebeniuk, Semen"]
[WhiteFideId "2001470"]
[BlackFideId "14117509"]
[WhiteElo "2117"]
[BlackElo "2266"]
[Result "0-1"]
[Round "07"]
[TimeControl "180+2"]
[Date "2023.03.28"]
[WhiteClock "0:00:23"]
[BlackClock "0:00:40"]

1. d4 {[%clk 0:02:56]}  f5 {[%clk 0:02:59]} 2. Nc3 {[%clk 0:02:55]}  Nf6 {[%clk 0:02:59]} 3. Bg5 {[%clk 0:02:55]}  d5 {[%clk 0:03:00]} 4. f3 {[%clk 0:02:54]}  c5 {[%clk 0:02:50]} 5. e4 {[%clk 0:02:54]}  fxe4 {[%clk 0:02:45]} 6. fxe4 {[%clk 0:02:53]}  dxe4 {[%clk 0:02:45]} 7. dxc5 {[%clk 0:02:47]}  Qa5 {[%clk 0:02:38]} 8. Bb5+ {[%clk 0:02:32]}  Bd7 {[%clk 0:02:37]} 9. Bxd7+ {[%clk 0:02:12]}  Nbxd7 {[%clk 0:02:37]} 10. Ne2 {[%clk 0:02:01]}  Qxc5 {[%clk 0:02:37]} 11. Qd2 {[%clk 0:01:49]}  O-O-O {[%clk 0:02:34]} 12. O-O-O {[%clk 0:01:46]}  e5 {[%clk 0:02:33]} 13. Bxf6 {[%clk 0:01:39]}  gxf6 {[%clk 0:02:30]} 14. Nxe4 {[%clk 0:01:38]}  Qb6 {[%clk 0:02:30]} 15. Nd6+ {[%clk 0:01:28]}  Bxd6 {[%clk 0:02:30]} 16. Qxd6 {[%clk 0:01:27]}  Qe3+ {[%clk 0:01:49]} 17. Qd2 {[%clk 0:01:26]}  Qxd2+ {[%clk 0:01:39]} 18. Rxd2 {[%clk 0:01:26]}  Nc5 {[%clk 0:01:29]} 19. Rf1 {[%clk 0:01:23]}  Rxd2 {[%clk 0:01:26]} 20. Kxd2 {[%clk 0:01:23]}  Kd7 {[%clk 0:01:27]} 21. Nc3 {[%clk 0:01:21]}  Ke6 {[%clk 0:01:25]} 22. b4 {[%clk 0:01:20]}  Na6 {[%clk 0:01:20]} 23. a3 {[%clk 0:01:19]}  Rd8+ {[%clk 0:01:20]} 24. Ke3 {[%clk 0:01:16]}  Nc7 {[%clk 0:01:18]} 25. g4 {[%clk 0:01:13]}  Rd4 {[%clk 0:01:14]} 26. h3 {[%clk 0:01:12]}  h5 {[%clk 0:01:10]} 27. Rg1 {[%clk 0:01:11]}  hxg4 {[%clk 0:01:08]} 28. Rxg4 {[%clk 0:01:07]}  Rxg4 {[%clk 0:00:54]} 29. hxg4 {[%clk 0:01:07]}  Nd5+ {[%clk 0:00:54]} 30. Nxd5 {[%clk 0:01:06]}  Kxd5 {[%clk 0:00:55]} 31. Kd3 {[%clk 0:01:03]}  b5 {[%clk 0:00:56]} 32. c3 {[%clk 0:00:56]}  e4+ {[%clk 0:00:47]} 33. Ke3 {[%clk 0:00:55]}  Ke5 {[%clk 0:00:47]} 34. Kd2 {[%clk 0:00:46]}  Kf4 {[%clk 0:00:46]} 35. c4 {[%clk 0:00:43]}  bxc4 {[%clk 0:00:45]} 36. b5 {[%clk 0:00:35]}  e3+ {[%clk 0:00:43]} 37. Kc2 {[%clk 0:00:27]}  e2 {[%clk 0:00:42]} 38. Kd2 {[%clk 0:00:23]}  Kf3 {[%clk 0:00:40]} 0-1


[Site "https://www.chess.com"]

[Event "Titled Tuesday Blitz March 28 Late 2023"]
[White "MKlose11"]
[Black "Bochnicka, Vladimir"]
[BlackFideId "14943450"]
[WhiteElo "2545"]
[BlackElo "2094"]
[Result "0-1"]
[Round "07"]
[TimeControl "180+2"]
[Date "2023.03.28"]
[WhiteClock "0:00:02"]
[BlackClock "0:00:38"]

1. e4 {[%clk 0:03:00]}  c5 {[%clk 0:02:58]} 2. Nc3 {[%clk 0:03:00]}  Nc6 {[%clk 0:02:58]} 3. g3 {[%clk 0:03:01]}  g6 {[%clk 0:02:58]} 4. Bg2 {[%clk 0:03:02]}  Bg7 {[%clk 0:02:58]} 5. d3 {[%clk 0:03:03]}  e6 {[%clk 0:02:58]} 6. Be3 {[%clk 0:03:02]}  d6 {[%clk 0:02:58]} 7. Qd2 {[%clk 0:03:02]}  Nge7 {[%clk 0:02:59]} 8. Bh6 {[%clk 0:03:02]}  Bf6 {[%clk 0:02:45]} 9. Nge2 {[%clk 0:02:51]}  Bd7 {[%clk 0:02:45]} 10. h4 {[%clk 0:02:51]}  a6 {[%clk 0:02:45]} 11. O-O {[%clk 0:02:49]}  Qc7 {[%clk 0:02:45]} 12. a4 {[%clk 0:02:48]}  Rb8 {[%clk 0:02:39]} 13. f4 {[%clk 0:02:42]}  Ng8 {[%clk 0:02:33]} 14. Bg5 {[%clk 0:02:37]}  Bd4+ {[%clk 0:02:27]} 15. Nxd4 {[%clk 0:02:17]}  cxd4 {[%clk 0:02:28]} 16. Nd5 {[%clk 0:02:16]}  exd5 {[%clk 0:02:29]} 17. exd5 {[%clk 0:02:17]}  Nce7 {[%clk 0:02:29]} 18. Rae1 {[%clk 0:02:16]}  f6 {[%clk 0:02:27]} 19. Qf2 {[%clk 0:01:58]}  fxg5 {[%clk 0:02:07]} 20. Qxd4 {[%clk 0:01:56]}  Qc5 {[%clk 0:02:08]} 21. Qxc5 {[%clk 0:01:56]}  dxc5 {[%clk 0:02:09]} 22. d6 {[%clk 0:01:57]}  Kd8 {[%clk 0:02:05]} 23. dxe7+ {[%clk 0:01:56]}  Nxe7 {[%clk 0:02:06]} 24. fxg5 {[%clk 0:01:52]}  Nf5 {[%clk 0:02:06]} 25. Kh2 {[%clk 0:01:35]}  Kc7 {[%clk 0:02:04]} 26. g4 {[%clk 0:01:29]}  Nd6 {[%clk 0:02:04]} 27. Kg3 {[%clk 0:01:25]}  Rbe8 {[%clk 0:02:03]} 28. b3 {[%clk 0:01:23]}  Rxe1 {[%clk 0:01:59]} 29. Rxe1 {[%clk 0:01:24]}  Re8 {[%clk 0:01:59]} 30. Rc1 {[%clk 0:01:20]}  Bc6 {[%clk 0:01:57]} 31. Bxc6 {[%clk 0:01:16]}  Kxc6 {[%clk 0:01:58]} 32. Kf3 {[%clk 0:01:14]}  Kd5 {[%clk 0:01:55]} 33. h5 {[%clk 0:01:11]}  Kd4 {[%clk 0:01:54]} 34. hxg6 {[%clk 0:01:06]}  hxg6 {[%clk 0:01:54]} 35. Rh1 {[%clk 0:01:07]}  Kc3 {[%clk 0:01:41]} 36. Rh6 {[%clk 0:01:05]}  Re6 {[%clk 0:01:41]} 37. Rh2 {[%clk 0:01:05]}  b5 {[%clk 0:01:38]} 38. axb5 {[%clk 0:00:52]}  Nxb5 {[%clk 0:01:39]} 39. Kf4 {[%clk 0:00:49]}  Nc7 {[%clk 0:01:31]} 40. Kf3 {[%clk 0:00:44]}  Nd5 {[%clk 0:01:31]} 41. Rh8 {[%clk 0:00:26]}  Kxc2 {[%clk 0:01:30]} 42. Rc8 {[%clk 0:00:26]}  Kxb3 {[%clk 0:01:15]} 43. Rxc5 {[%clk 0:00:26]}  Ne7 {[%clk 0:01:11]} 44. d4 {[%clk 0:00:22]}  Kb4 {[%clk 0:01:06]} 45. Rc7 {[%clk 0:00:18]}  a5 {[%clk 0:01:05]} 46. Rb7+ {[%clk 0:00:15]}  Kc4 {[%clk 0:01:03]} 47. Ra7 {[%clk 0:00:15]}  Nc6 {[%clk 0:01:03]} 48. Ra8 {[%clk 0:00:15]}  Nxd4+ {[%clk 0:01:03]} 49. Kg3 {[%clk 0:00:15]}  Kb4 {[%clk 0:01:02]} 50. Kf4 {[%clk 0:00:15]}  a4 {[%clk 0:01:02]} 51. Rf8 {[%clk 0:00:15]}  a3 {[%clk 0:01:02]} 52. Rb8+ {[%clk 0:00:13]}  Nb5 {[%clk 0:01:01]} 53. Ra8 {[%clk 0:00:14]}  Re2 {[%clk 0:00:53]} 54. Ra6 {[%clk 0:00:09]}  a2 {[%clk 0:00:49]} 55. Kf3 {[%clk 0:00:06]}  Rb2 {[%clk 0:00:46]} 56. Kf4 {[%clk 0:00:04]}  Kb3 {[%clk 0:00:42]} 57. Ke5 {[%clk 0:00:03]}  Na3 {[%clk 0:00:38]} 58. Kf6 {[%clk 0:00:01]}  a1=Q {[%clk 0:00:38]} 59. Kxg6 {[%clk 0:00:02]}  Rg2 {[%clk 0:00:38]} 0-1


[Site "https://www.chess.com"]

[Event "Titled Tuesday Blitz March 28 Late 2023"]
[White "cryptoguru02"]
[Black "Vafin, Ayrat"]
[BlackFideId "4146530"]
[WhiteElo "2534"]
[BlackElo "2317"]
[Result "0-1"]
[Round "07"]
[TimeControl "180+2"]
[Date "2023.03.28"]
[WhiteClock "0:00:08"]
[BlackClock "0:01:15"]

1. d4 {[%clk 0:03:00]}  d5 {[%clk 0:02:59]} 2. c4 {[%clk 0:03:01]}  e6 {[%clk 0:02:59]} 3. Nc3 {[%clk 0:03:01]}  Be7 {[%clk 0:02:59]} 4. Nf3 {[%clk 0:03:00]}  Nf6 {[%clk 0:02:59]} 5. Bf4 {[%clk 0:03:00]}  O-O {[%clk 0:02:58]} 6. e3 {[%clk 0:03:00]}  b6 {[%clk 0:02:58]} 7. Bd3 {[%clk 0:02:58]}  Bb7 {[%clk 0:02:58]} 8. O-O {[%clk 0:02:57]}  Nbd7 {[%clk 0:02:48]} 9. cxd5 {[%clk 0:02:55]}  Nxd5 {[%clk 0:02:48]} 10. Nxd5 {[%clk 0:02:55]}  Bxd5 {[%clk 0:02:49]} 11. e4 {[%clk 0:02:50]}  Bb7 {[%clk 0:02:46]} 12. Rc1 {[%clk 0:02:30]}  c5 {[%clk 0:02:44]} 13. d5 {[%clk 0:02:30]}  exd5 {[%clk 0:02:44]} 14. exd5 {[%clk 0:02:30]}  Bxd5 {[%clk 0:02:37]} 15. Bxh7+ {[%clk 0:02:28]}  Kxh7 {[%clk 0:02:38]} 16. Qxd5 {[%clk 0:02:29]}  Nf6 {[%clk 0:02:38]} 17. Qf5+ {[%clk 0:02:22]}  g6 {[%clk 0:02:36]} 18. Qh3+ {[%clk 0:02:20]}  Kg7 {[%clk 0:02:34]} 19. Bh6+ {[%clk 0:02:20]}  Kg8 {[%clk 0:02:34]} 20. Bxf8 {[%clk 0:02:19]}  Bxf8 {[%clk 0:02:35]} 21. Rcd1 {[%clk 0:02:16]}  Qc8 {[%clk 0:02:32]} 22. Qh4 {[%clk 0:01:58]}  Bg7 {[%clk 0:02:30]} 23. b3 {[%clk 0:01:56]}  Qf5 {[%clk 0:02:20]} 24. Rfe1 {[%clk 0:01:44]}  Rc8 {[%clk 0:02:03]} 25. Qc4 {[%clk 0:01:32]}  Nh5 {[%clk 0:01:58]} 26. Rd5 {[%clk 0:01:22]}  Qf6 {[%clk 0:01:54]} 27. Rde5 {[%clk 0:01:14]}  Qc6 {[%clk 0:01:42]} 28. Re7 {[%clk 0:01:07]}  Rf8 {[%clk 0:01:42]} 29. Rxf7 {[%clk 0:01:00]}  Rxf7 {[%clk 0:01:35]} 30. Ng5 {[%clk 0:00:41]}  Qf6 {[%clk 0:01:31]} 31. Re8+ {[%clk 0:00:34]}  Bf8 {[%clk 0:01:31]} 32. Qxf7+ {[%clk 0:00:18]}  Qxf7 {[%clk 0:01:29]} 33. Nxf7 {[%clk 0:00:19]}  Kxf7 {[%clk 0:01:30]} 34. Ra8 {[%clk 0:00:19]}  b5 {[%clk 0:01:22]} 35. Rxa7+ {[%clk 0:00:19]}  Ke6 {[%clk 0:01:23]} 36. a3 {[%clk 0:00:18]}  Nf4 {[%clk 0:01:19]} 37. Rb7 {[%clk 0:00:15]}  c4 {[%clk 0:01:19]} 38. Rxb5 {[%clk 0:00:14]}  c3 {[%clk 0:01:19]} 39. Rb6+ {[%clk 0:00:11]}  Kd5 {[%clk 0:01:19]} 40. Rb8 {[%clk 0:00:09]}  c2 {[%clk 0:01:15]} 41. Rc8 {[%clk 0:00:09]}  Bc5 {[%clk 0:01:15]} 42. b4 {[%clk 0:00:08]}  c1=Q# {[%clk 0:01:15]} 0-1


[Site "https://www.chess.com"]